fUSD/lending_fUSD_20260407
["ID","MTS","AMOUNT","RATE_DAILY","PERIOD"]
[419971176,1775574642555,-2000.0,0.0001589,2]
[419971177,1775574642564,-10000.0,0.000159,2]
[419971178,1775574642574,-20132.68535765,0.000159,2]
[419971179,1775574642583,-700.0,0.00015962,4]
[419971180,1775574642593,-500.0,0.00015973,2]
[419971181,1775574642603,-308.46665477,0.00015973,2]
[419971182,1775574642611,-500.62488196,0.00015973,2]
[419971183,1775574642621,-500.0,0.00015973,2]
[419971184,1775574642631,-500.0,0.00015973,2]
[419971185,1775574642640,-500.0,0.00015973,2]
[419971186,1775574642651,-502.96988739,0.00015973,2]
[419971187,1775574642661,-500.0,0.00015973,2]
[419971188,1775574642671,-500.0,0.00015973,2]
[419971189,1775574642681,-500.0,0.00015973,2]
[419971191,1775574642691,-500.0,0.00015973,2]
[419971192,1775574642702,-500.0,0.00015973,2]
[419971193,1775574642711,-500.0,0.00015973,2]
[419971194,1775574642721,-500.0,0.00015973,2]
[419971195,1775574642731,-500.0,0.00015973,2]
[419971196,1775574642740,-500.0,0.00015973,2]
[419971197,1775574642750,-500.0,0.00015973,2]
[419971199,1775574642760,-501.15528653,0.00015973,2]
[419971200,1775574642769,-500.0,0.00015973,2]
[419971201,1775574642779,-500.0,0.00015973,2]
[419971202,1775574642788,-500.0,0.00015973,2]
[419971203,1775574642799,-500.0,0.00015973,2]
[419971204,1775574642809,-500.0,0.00015973,2]
[419971205,1775574642819,-361.43877969,0.00015973,2]
[419971206,1775574642829,-500.0,0.00015973,2]
[419971207,1775574642839,-500.0,0.00015973,2]
[419971208,1775574642849,-500.0,0.00015973,2]
[419971209,1775574642859,-500.0,0.00015973,2]
[419971210,1775574642868,-500.0,0.00015973,2]
[419971211,1775574642878,-500.0,0.00015973,2]
[419971212,1775574642888,-57636.64122745,0.00015999,2]
[419971213,1775574642898,-150.0,0.00015999,2]
[419971214,1775574642907,-150.0,0.00015999,2]
[419971215,1775574642918,-150.0,0.00015999,2]
[419971216,1775574642927,-150.0,0.00015999,2]
[419971217,1775574642941,-150.0,0.00015999,2]
[419971218,1775574642954,-150.0,0.00015999,2]
[419971219,1775574642964,-150.0,0.00015999,2]
[419971220,1775574642974,-150.0,0.00015999,2]
[419971221,1775574642984,-179.55299746,0.00015999,2]
[419971222,1775574642995,-521192.6700781,0.00016,2]
[419971223,1775574643005,-5336.99557971,0.00016,2]
[419971224,1775574643015,-557005.71538378,0.00016,2]
[419971257,1775574644838,-319.5,0.00014133,2]
[419971260,1775574645682,-180.5,0.00014133,2]
[419971261,1775574645692,-119.07500942,0.00014133,2]
[419971262,1775574645710,-246.77110014,0.00014133,2]
[419971263,1775574645720,-446.72423729,0.00014133,2]
[419971264,1775574645730,-500.0,0.00014133,2]
[419971265,1775574645740,-641.45991704,0.00014133,2]
[419971266,1775574645749,-500.0,0.00014133,2]
[419971267,1775574645758,-586.61611564,0.00014133,2]
[419971268,1775574645767,-110.18239574,0.00014133,2]
[419971269,1775574645805,-389.81760426,0.00014133,2]
[419971270,1775574645814,-500.0,0.00014133,2]
[419971271,1775574645823,-500.0,0.00014133,2]
[419971272,1775574645833,-500.0,0.00014133,2]
[419971273,1775574645843,-500.0,0.00014133,2]
[419971274,1775574645852,-500.0,0.00014133,2]
[419971275,1775574645862,-500.0,0.00014133,2]
[419971276,1775574645872,-500.0,0.00014133,2]
[419971277,1775574645882,-500.0,0.00014133,2]
[419971278,1775574645891,-419.03552902,0.00014133,2]
[419971279,1775574645901,-500.0,0.00014133,2]
[419971280,1775574645910,-500.0,0.00014133,2]
[419971281,1775574645920,-500.0,0.00014133,2]
[419971282,1775574645929,-500.0,0.00014133,2]
[419971283,1775574645939,-500.0,0.00014133,2]
[419971284,1775574645950,-500.0,0.00014133,2]
[419971285,1775574645959,-500.0,0.00014133,2]
[419971286,1775574645970,-6022.0,0.0001485,2]
[419971287,1775574645980,-503.02434497,0.00015103,2]
[419971288,1775574645990,-279.034062,0.00015178,2]
[419971289,1775574646000,-908.0,0.00015725,2]
[419971290,1775574646010,-38796.36584975,0.00016,2]
[419971291,1775574646022,-1089.81431679,0.00016,2]
[419971292,1775574646046,-371851.51009991,0.00016,2]
[419971293,1775574646299,-247.182825,0.00015178,2]
[419971294,1775574646309,-152.49634194,0.00015178,2]
[419971295,1775574646328,-126.53772006,0.00015178,2]
[419971296,1775574646338,-1356.74927994,0.000159,2]
[419971301,1775574653176,500.0,0.000131,2]
[419971302,1775574665346,159.0,0.00013209,2]
[419971303,1775574673808,501.0,0.000131,2]
[419971306,1775574845801,-407.23219724,0.0001,2]
[419971307,1775574893283,-3826.437556,0.00010745,2]
[419971308,1775574893346,-2052.33775375,0.000108,2]
[419971309,1775574893485,-3525.66224625,0.000108,2]
[419971310,1775574893517,-480.0,0.00010899,2]
[419971311,1775574893571,-1988.6855075,0.000109,3]
[419971312,1775574893605,-3544.3144925,0.000109,3]
[419971313,1775574893636,-193.0,0.00011,2]
[419971314,1775574893666,-300.33636071,0.00011,2]
[419971315,1775574893699,-387.37658265,0.00011078,2]
[419971316,1775574893729,-300.0,0.00011099,2]
[419971317,1775574893836,-4467.01,0.000111,5]
[419971318,1775574893920,-1065.99,0.000111,5]
[419971319,1775574893950,-152.0,0.00011318,3]
[419971320,1775574893983,-2375.73,0.00011964,2]
[419971321,1775574894555,-420.0,0.00012195,2]
[419971322,1775574894587,-834.57,0.00012705,2]
[419971323,1775574894707,-303.43,0.00012705,2]
[419971324,1775574894737,-911.0,0.00012731,2]
[419971325,1775574894775,-1763.0,0.00012756,2]
[419971326,1775574894807,-1003.09227281,0.00012781,2]
[419971327,1775574894836,-948.96545438,0.00012781,2]
[419971328,1775574894946,-141.03454562,0.00012781,2]
[419971329,1775574894977,-379.0,0.00012807,2]
[419971330,1775574895008,-1583.0,0.00012832,2]
[419971331,1775574895039,-327.39,0.00012857,2]
[419971332,1775574895111,-0.02,0.00012857,2]
[419971333,1775574895389,-192.62454562,0.00012857,2]
[419971334,1775574895404,-1583.0,0.00012857,2]
[419971335,1775574895418,-327.39,0.00012857,2]
[419971336,1775574895446,-5139.16090876,0.00012857,2]
[419971337,1775574895469,-2757.79454562,0.00012857,2]
[419971338,1775574895479,-7242.19545438,0.00012857,2]
[419971339,1775574896200,-10000.01,0.00012857,2]
[419971340,1775574896359,-10000.01,0.00012857,2]
[419971341,1775574896517,-2757.77454562,0.00012857,2]
[419971342,1775574896549,-461.0,0.00012858,2]
[419971343,1775574896582,-152.0,0.00012862,4]
[419971344,1775574896663,-3258.46090876,0.00012862,2]
[419971345,1775574938339,-3175.09909124,0.00012862,2]
[419971346,1775574938371,-715.0,0.00012883,2]
[419971347,1775574938400,-254.0,0.00012892,2]
[419971348,1775574938431,-511.81181752,0.00012892,2]
[419971349,1775574938525,-688.18818248,0.00012892,2]
[419971350,1775574938555,-300.0,0.00012892,2]
[419971351,1775574938586,-287.0,0.00012892,2]
[419971352,1775574938618,-150.0,0.00012892,2]
[419971353,1775574938648,-299.99,0.00012893,2]
[419971354,1775574938680,-3209.4,0.00012893,2]
[419971355,1775574938775,-427.12,0.00012893,2]
[419971356,1775574938889,-854.24,0.00012893,2]
[419971357,1775574938995,-8291.53,0.00012893,2]
[419971358,1775574939005,-867.85363504,0.00012893,2]
[419971359,1775574939092,-9132.13636496,0.00012893,2]
[419971360,1775574939101,-13.63363504,0.00012893,2]
[419971361,1775574941567,-137.35636496,0.00012893,2]
[419971362,1775574941596,-999.99,0.00012893,2]
[419971363,1775574941625,-2008.13727008,0.00012893,2]
[419971364,1775574941739,-3709.04272992,0.00012893,2]
[419971365,1775574951222,190.77370002,0.00012882,2]
[419971366,1775574969910,551.32737199,0.00012882,2]
[419971367,1775574969944,551.32737199,0.00012882,2]
[419971368,1775574969977,551.32737199,0.00012882,2]
[419971369,1775574970011,551.32737199,0.00012882,2]
[419971370,1775574970046,551.32737199,0.00012882,2]
[419971371,1775574970079,551.32737199,0.00012882,2]
[419971372,1775574970113,551.32737199,0.00012882,2]
[419971373,1775574970146,551.32737199,0.00012882,2]
[419971374,1775574970180,551.32737199,0.00012882,2]
[419971375,1775574970213,551.32737199,0.00012882,2]
[419971376,1775574970245,551.32737199,0.00012882,2]
[419971377,1775574970290,551.32737199,0.00012882,2]
[419971378,1775574970327,551.32737199,0.00012882,2]
[419971379,1775574970366,551.32737199,0.00012882,2]
[419971380,1775574970399,551.32737199,0.00012882,2]
[419971381,1775574970434,551.32737199,0.00012882,2]
[419971382,1775574970476,551.32737199,0.00012882,2]
[419971383,1775574970509,436.67097615,0.00012882,2]
[419971384,1775574970536,114.65639584,0.00012882,2]
[419971385,1775574970580,551.32737199,0.00012882,2]
[419971386,1775574970614,551.32737199,0.00012882,2]
[419971387,1775574970651,551.32737199,0.00012882,2]
[419971388,1775574970687,551.32737199,0.00012882,2]
[419971389,1775574970723,551.32737199,0.00012882,2]
[419971390,1775574970755,551.32737199,0.00012882,2]
[419971391,1775574970787,551.32737199,0.00012882,2]
[419971392,1775574970825,551.32737199,0.00012882,2]
[419971393,1775574970859,551.32737199,0.00012882,2]
[419971394,1775574970892,551.32737199,0.00012882,2]
[419971395,1775574970928,551.32737199,0.00012882,2]
[419971396,1775574970965,551.32737199,0.00012882,2]
[419971397,1775574970999,551.32737199,0.00012882,2]
[419971398,1775574971091,551.32737199,0.00012882,2]
[419971399,1775574971153,551.32737199,0.00012882,2]
[419971400,1775574971186,551.32737199,0.00012882,2]
[419971401,1775574971221,551.32737199,0.00012882,2]
[419971402,1775574971263,512.78828033,0.00012882,2]
[419971403,1775574971297,38.53909166,0.00012882,2]
[419971404,1775574971339,551.32737199,0.00012882,2]
[419971405,1775574971376,551.32737199,0.00012882,2]
[419971406,1775574971412,551.32737199,0.00012882,2]
[419971407,1775574971447,551.32737199,0.00012882,2]
[419971408,1775574971481,551.32737199,0.00012882,2]
[419971409,1775574971525,551.32737199,0.00012882,2]
[419971410,1775574971582,551.32737199,0.00012882,2]
[419971411,1775574971618,551.32737199,0.00012882,2]
[419971412,1775574971663,551.32737199,0.00012882,2]
[419971413,1775574982959,551.32737199,0.00012882,2]
[419971414,1775574982992,551.32737199,0.00012882,2]
[419971415,1775574983025,551.32737199,0.00012882,2]
[419971416,1775574983074,551.32737199,0.00012882,2]
[419971417,1775574983108,551.32737199,0.00012882,2]
[419971418,1775574983142,551.32737199,0.00012882,2]
[419971419,1775574983176,551.32737199,0.00012882,2]
[419971420,1775574983212,551.32737199,0.00012882,2]
[419971421,1775574983248,551.32737199,0.00012882,2]
[419971422,1775574983285,551.32737199,0.00012882,2]
[419971423,1775574983322,551.32737199,0.00012882,2]
[419971424,1775574983359,551.32737199,0.00012882,2]
[419971425,1775574983399,551.32737199,0.00012882,2]
[419971426,1775574983437,551.32737199,0.00012882,2]
[419971427,1775574983475,551.32737199,0.00012882,2]
[419971428,1775574983521,551.32737199,0.00012882,2]
[419971429,1775574983555,551.32737199,0.00012882,2]
[419971430,1775574983592,551.32737199,0.00012882,2]
[419971431,1775574983629,76.11730418,0.00012882,2]
[419971432,1775574983659,475.21006781,0.00012882,2]
[419971433,1775574983706,551.32737199,0.00012882,2]
[419971434,1775574983804,551.32737199,0.00012882,2]
[419971435,1775574983841,551.32737199,0.00012882,2]
[419971436,1775574983877,551.32737199,0.00012882,2]
[419971437,1775574983912,551.32737199,0.00012882,2]
[419971438,1775574983944,551.32737199,0.00012882,2]
[419971439,1775574983983,551.32737199,0.00012882,2]
[419971440,1775574984019,551.32737199,0.00012882,2]
[419971441,1775574984058,551.32737199,0.00012882,2]
[419971442,1775574984096,551.32737199,0.00012882,2]
[419971443,1775574984146,551.32737199,0.00012882,2]
[419971444,1775574984186,551.32737199,0.00012882,2]
[419971445,1775574984219,551.32737199,0.00012882,2]
[419971446,1775574984279,551.32737199,0.00012882,2]
[419971447,1775574984315,551.32737199,0.00012882,2]
[419971448,1775574984349,551.32737199,0.00012882,2]
[419971449,1775574984390,551.32737199,0.00012882,2]
[419971450,1775574984424,152.23460836,0.00012882,2]
[419971453,1775575341511,-151.0,0.00012532,2]
[419971454,1775575341540,-151.0,0.00012544,2]
[419971455,1775575341569,-522.31,0.00012834,2]
[419971456,1775575341600,-150.0,0.00012848,2]
[419971457,1775575341631,-250.0,0.00012849,2]
[419971458,1775575341663,-1200.0,0.00012849,2]
[419971459,1775575341693,-500.0,0.00012849,2]
[419971460,1775575341724,-500.0,0.00012849,2]
[419971461,1775575341761,-500.0,0.00012849,2]
[419971462,1775575341798,-500.0,0.00012849,2]
[419971463,1775575341835,-500.0,0.00012849,2]
[419971464,1775575342096,-500.0,0.00012849,2]
[419971465,1775575342135,-500.0,0.00012849,2]
[419971466,1775575342172,-500.0,0.00012849,2]
[419971467,1775575342210,-500.0,0.00012849,2]
[419971468,1775575342245,-500.0,0.00012849,2]
[419971469,1775575342283,-500.0,0.00012849,2]
[419971470,1775575342321,-481.61822216,0.00012849,2]
[419971471,1775575342356,-500.0,0.00012849,2]
[419971472,1775575342392,-500.0,0.00012849,2]
[419971473,1775575342429,-500.0,0.00012849,2]
[419971474,1775575342565,-500.0,0.00012849,2]
[419971475,1775575342604,-500.0,0.00012849,2]
[419971476,1775575342642,-500.0,0.00012849,2]
[419971477,1775575342679,-500.0,0.00012849,2]
[419971478,1775575342714,-500.0,0.00012849,2]
[419971479,1775575342751,-500.0,0.00012849,2]
[419971480,1775575342788,-500.0,0.00012849,2]
[419971481,1775575342824,-500.0,0.00012849,2]
[419971482,1775575342859,-232.29854595,0.00012849,2]
[419971483,1775575342894,-500.0,0.00012849,2]
[419971484,1775575342923,-35.4129081,0.00012886,2]
[419971485,1775575343028,-464.5870919,0.00012886,2]
[419971486,1775575343057,-179.80643111,0.00012886,2]
[419971487,1775575343087,-1000.0,0.00012893,2]
[419971488,1775575343117,-1001.01606172,0.00012893,2]
[419971489,1775575343146,-200.0,0.000129,2]
[419971490,1775575343177,-200.0,0.000129,2]
[419971491,1775575503022,198.39676812,0.00012859,2]
[419971492,1775575506615,150.0,0.00012773,2]
[419971493,1775575507960,150.0,0.00012773,2]
[419971494,1775575508012,150.0,0.00012773,2]
[419971495,1775575510582,150.0,0.00012773,2]
[419971496,1775575513221,-5000.0,0.00012945,2]
[419971497,1775575514114,0.01,0.00012773,2]
[419971498,1775575514146,149.99,0.00012773,2]
[419971499,1775575526071,150.0,0.00012773,2]
[419971500,1775575526120,150.0,0.00012861,2]
[419971501,1775575527264,150.0,0.00012773,2]
[419971502,1775575629625,151.0,0.00012885,2]
[419971503,1775575663057,8606.1,0.00012571,2]
[419971511,1775575800503,-150.0,0.0001295,2]
[419971516,1775575816661,198.39676812,0.00012917,2]
[419971517,1775575824480,2000.0,0.00012377,2]
[419971520,1775575831854,-250.0,0.00012955,2]
[419971521,1775575831865,-250.0,0.00012996,2]
[419971522,1775575831875,-150.0,0.00013039,2]
[419971523,1775575831885,-98.00966555,0.000131,2]
[419971524,1775575832012,-402.99033445,0.000131,2]
[419971525,1775575832022,-151.0,0.00013121,2]
[419971526,1775575832031,-150.0,0.00013127,2]
[419971527,1775575832041,-423.55447548,0.00013171,2]
[419971528,1775575832053,-776.44552452,0.00013171,2]
[419971529,1775575832063,-261.67649169,0.00013172,2]
[419971530,1775575832073,-166.66,0.00013196,2]
[419971531,1775575832083,-150.0,0.00013216,2]
[419971532,1775575832092,-150.0,0.00013246,2]
[419971533,1775575832102,-101.94525537,0.00013246,2]
[419971534,1775575832114,-48.05474463,0.00013246,2]
[419971535,1775575832124,-300.0,0.00013255,2]
[419971536,1775575832133,-1650.45268022,0.00013256,2]
[419971537,1775575832145,-3640.59180879,0.00013256,2]
[419971538,1775575832157,-346.84803172,0.00013256,2]
[419971539,1775575832169,-3120.83448999,0.00013256,2]
[419971540,1775575832178,-694.28729386,0.00013256,2]
[419971542,1775575832188,-893.0,0.00013286,2]
[419971543,1775575832197,-441.0,0.00013286,2]
[419971544,1775575832207,-150.0,0.000133,2]
[419971545,1775575832217,-150.0,0.00013305,2]
[419971546,1775575832226,-1905.0,0.00013312,2]
[419971547,1775575832236,-167.0,0.00013312,2]
[419971548,1775575832245,-1345.02743546,0.00013315,2]
[419971549,1775575832254,-150.0,0.00013324,2]
[419971550,1775575832264,-3108.75468785,0.00013325,2]
[419971551,1775575832275,-1748991.40625959,0.00013325,2]
[419971552,1775575832287,-4593.23263761,0.00013325,2]
[419971554,1775575832299,-58613.15549014,0.00013325,2]
[419971555,1775575832309,-456.50541151,0.00013325,2]
[419971556,1775575832321,-11297.50850905,0.00013325,2]
[419971557,1775575832332,-672939.43700425,0.00013325,2]
[419971558,1775575832341,-322.0,0.00013339,2]
[419971559,1775575832350,-500.0,0.00013356,2]
[419971560,1775575832359,-500.0,0.00013356,2]
[419971561,1775575832369,-500.0,0.00013356,2]
[419971562,1775575832378,-500.0,0.00013356,2]
[419971563,1775575832388,-151.0,0.00013356,2]
[419971564,1775575832397,-500.0,0.00013356,2]
[419971565,1775575832407,-151.0,0.00013356,2]
[419971566,1775575832417,-200.0,0.00013356,2]
[419971567,1775575832426,-500.0,0.00013356,2]
[419971568,1775575832435,-151.0,0.00013356,2]
[419971569,1775575832445,-500.0,0.00013356,2]
[419971570,1775575832454,-151.0,0.00013356,2]
[419971571,1775575832464,-500.0,0.00013356,2]
[419971572,1775575832473,-151.0,0.00013356,2]
[419971573,1775575832483,-500.0,0.00013356,2]
[419971574,1775575832493,-151.0,0.00013356,2]
[419971575,1775575832502,-500.0,0.00013356,2]
[419971576,1775575832512,-151.0,0.00013356,2]
[419971577,1775575832521,-500.0,0.00013356,2]
[419971578,1775575832531,-151.0,0.00013356,2]
[419971579,1775575832541,-500.0,0.00013356,2]
[419971580,1775575832550,-151.0,0.00013356,2]
[419971581,1775575832559,-151.0,0.00013356,2]
[419971582,1775575832569,-151.0,0.00013356,2]
[419971583,1775575832579,-500.0,0.00013356,2]
[419971584,1775575832588,-151.0,0.00013356,2]
[419971585,1775575832598,-500.0,0.00013356,2]
[419971586,1775575832608,-500.0,0.00013356,2]
[419971587,1775575832617,-500.0,0.00013356,2]
[419971588,1775575832626,-151.0,0.00013356,2]
[419971589,1775575832636,-500.0,0.00013356,2]
[419971590,1775575832645,-151.0,0.00013356,2]
[419971591,1775575832654,-151.0,0.00013356,2]
[419971592,1775575832664,-500.0,0.00013356,2]
[419971593,1775575832673,-500.0,0.00013356,2]
[419971594,1775575832683,-151.0,0.00013356,2]
[419971595,1775575832693,-500.0,0.00013356,2]
[419971596,1775575832703,-151.0,0.00013356,2]
[419971597,1775575832712,-500.0,0.00013356,2]
[419971598,1775575832721,-151.0,0.00013356,2]
[419971599,1775575832732,-500.0,0.00013356,2]
[419971600,1775575832742,-151.0,0.00013356,2]
[419971601,1775575832751,-500.0,0.00013356,2]
[419971602,1775575832760,-151.0,0.00013356,2]
[419971603,1775575832770,-151.0,0.00013356,2]
[419971604,1775575832780,-500.0,0.00013356,2]
[419971605,1775575832790,-151.0,0.00013356,2]
[419971606,1775575832800,-151.0,0.00013356,2]
[419971607,1775575832809,-151.0,0.00013356,2]
[419971608,1775575832819,-151.0,0.00013356,2]
[419971609,1775575832828,-151.0,0.00013356,2]
[419971610,1775575832838,-151.0,0.00013356,2]
[419971611,1775575832848,-151.0,0.00013356,2]
[419971612,1775575832858,-151.0,0.00013356,2]
[419971613,1775575832867,-151.0,0.00013356,2]
[419971614,1775575832877,-151.0,0.00013356,2]
[419971615,1775575832886,-151.0,0.00013356,2]
[419971616,1775575832895,-151.0,0.00013356,2]
[419971617,1775575832905,-151.0,0.00013356,2]
[419971618,1775575832914,-1199.20597015,0.00013356,2]
[419971619,1775575832924,-500.0,0.00013356,2]
[419971620,1775575832934,-160.0,0.00013362,2]
[419971621,1775575832945,-7749.85,0.00013364,2]
[419971622,1775575832954,-4999.99,0.00013364,2]
[419971623,1775575832963,-150.99,0.00013364,2]
[419971624,1775575832972,-500.0,0.00013373,2]
[419971625,1775575832981,-500.0,0.00013373,2]
[419971626,1775575832991,-500.0,0.00013373,2]
[419971627,1775575833000,-500.0,0.00013373,2]
[419971628,1775575833010,-500.0,0.00013373,2]
[419971629,1775575833020,-500.0,0.00013373,2]
[419971630,1775575833029,-500.0,0.00013373,2]
[419971631,1775575833039,-500.0,0.00013373,2]
[419971632,1775575833048,-500.0,0.00013373,2]
[419971633,1775575833057,-150.0,0.00013393,2]
[419971634,1775575833066,-3240.0,0.00013425,2]
[419971635,1775575833075,-500.0,0.00013425,2]
[419971636,1775575833085,-500.0,0.00013425,2]
[419971637,1775575833095,-500.0,0.00013425,2]
[419971638,1775575833104,-500.0,0.00013425,2]
[419971639,1775575833113,-500.0,0.00013425,2]
[419971640,1775575833123,-500.0,0.00013425,2]
[419971641,1775575833131,-500.0,0.00013425,2]
[419971642,1775575833141,-500.0,0.00013425,2]
[419971643,1775575833151,-525.10817458,0.00013425,2]
[419971644,1775575833160,-150.0,0.00013425,2]
[419971645,1775575833170,-500.0,0.00013473,2]
[419971646,1775575833179,-150.0,0.00013482,2]
[419971647,1775575833188,-150.0,0.00013482,2]
[419971648,1775575833198,-150.0,0.00013482,2]
[419971649,1775575833208,-31906.9109,0.00013485,2]
[419971650,1775575833217,-91030.68192194,0.00013485,2]
[419971651,1775575833239,-927.69623708,0.00013485,2]
[419971652,1775575838065,-17554.57430046,0.00013446,2]
[419971653,1775575838077,-313.75100159,0.00013446,2]
[419971654,1775575838177,-1187.35566211,0.00013446,2]
[419971655,1775575838189,-1077.00439349,0.00013446,2]
[419971656,1775575838199,-558370.25554098,0.00013485,2]
[419971657,1775575838208,-542.62487172,0.00013546,2]
[419971658,1775575838218,-8758.72701063,0.0001355,2]
[419971659,1775575838228,-150.0,0.00013571,2]
[419971660,1775575838238,-1000.0,0.00013584,2]
[419971661,1775575838248,-500.0,0.00013585,2]
[419971662,1775575838258,-500.0,0.00013585,2]
[419971663,1775575838267,-500.0,0.00013585,2]
[419971664,1775575838278,-500.0,0.00013585,2]
[419971665,1775575838287,-500.0,0.00013585,2]
[419971666,1775575838297,-500.0,0.00013585,2]
[419971667,1775575838306,-500.0,0.00013585,2]
[419971668,1775575838316,-500.0,0.00013585,2]
[419971669,1775575838326,-500.0,0.00013585,2]
[419971670,1775575838337,-500.0,0.00013585,2]
[419971671,1775575838347,-500.0,0.00013585,2]
[419971672,1775575838358,-500.0,0.00013585,2]
[419971673,1775575838369,-500.0,0.00013585,2]
[419971674,1775575838379,-500.0,0.00013585,2]
[419971675,1775575838389,-500.0,0.00013585,2]
[419971676,1775575838399,-500.0,0.00013585,2]
[419971677,1775575838409,-174.4335177,0.00013585,2]
[419971678,1775575838419,-538.0,0.00013585,2]
[419971679,1775575838430,-538.0,0.00013585,2]
[419971680,1775575838440,-538.0,0.00013585,2]
[419971681,1775575838450,-538.0,0.00013585,2]
[419971682,1775575838459,-538.0,0.00013585,2]
[419971683,1775575838474,-538.0,0.00013585,2]
[419971684,1775575838485,-538.0,0.00013585,2]
[419971685,1775575838496,-538.0,0.00013585,2]
[419971686,1775575838506,-538.0,0.00013585,2]
[419971687,1775575838517,-538.0,0.00013585,2]
[419971688,1775575838526,-538.0,0.00013585,2]
[419971689,1775575838536,-538.0,0.00013585,2]
[419971690,1775575838546,-538.0,0.00013585,2]
[419971691,1775575838556,-538.0,0.00013585,2]
[419971692,1775575838566,-538.0,0.00013585,2]
[419971693,1775575838576,-538.0,0.00013585,2]
[419971694,1775575838587,-538.0,0.00013585,2]
[419971695,1775575838597,-538.0,0.00013585,2]
[419971696,1775575838608,-538.0,0.00013585,2]
[419971697,1775575838619,-538.0,0.00013585,2]
[419971698,1775575838629,-500.0,0.00013585,2]
[419971699,1775575838640,-500.0,0.00013585,2]
[419971700,1775575838651,-500.0,0.00013585,2]
[419971701,1775575839249,-538.0,0.00013585,2]
[419971702,1775575839262,-500.0,0.00013585,2]
[419971703,1775575839272,-500.0,0.00013585,2]
[419971704,1775575839282,-500.0,0.00013585,2]
[419971705,1775575839293,-500.0,0.00013585,2]
[419971706,1775575839303,-500.0,0.00013585,2]
[419971707,1775575839313,-500.0,0.00013585,2]
[419971708,1775575839324,-500.0,0.00013585,2]
[419971709,1775575839334,-500.0,0.00013585,2]
[419971710,1775575839344,-509.55510552,0.00013585,2]
[419971711,1775575839354,-538.0,0.00013585,2]
[419971712,1775575839364,-500.0,0.00013585,2]
[419971713,1775575839374,-500.0,0.00013585,2]
[419971714,1775575839384,-500.0,0.00013585,2]
[419971715,1775575839394,-500.0,0.00013585,2]
[419971716,1775575839403,-500.0,0.00013585,2]
[419971717,1775575839412,-500.0,0.00013585,2]
[419971718,1775575839422,-500.0,0.00013585,2]
[419971719,1775575839432,-500.0,0.00013585,2]
[419971720,1775575839442,-662.0,0.00013585,2]
[419971721,1775575839451,-662.0,0.00013585,2]
[419971722,1775575839460,-500.0,0.00013585,2]
[419971723,1775575839469,-500.0,0.00013585,2]
[419971724,1775575839478,-662.0,0.00013585,2]
[419971725,1775575839487,-500.0,0.00013585,2]
[419971726,1775575839496,-500.0,0.00013585,2]
[419971727,1775575839505,-662.0,0.00013585,2]
[419971728,1775575839514,-538.0,0.00013585,2]
[419971729,1775575839523,-662.0,0.00013585,2]
[419971730,1775575839532,-436.48877466,0.00013585,2]
[419971731,1775575839541,-662.0,0.00013585,2]
[419971732,1775575839550,-150.0,0.00013585,2]
[419971733,1775575839560,-150.0,0.00013585,2]
[419971734,1775575839570,-287.9956919,0.00013585,2]